fUST/lending_fUST_20260323
["ID","MTS","AMOUNT","RATE_DAILY","PERIOD"]
[408788441,1774271448050,-151.0,0.00022818,2]
[408788442,1774271448061,-438.0,0.00022922,2]
[408788443,1774271448071,-183.0,0.00022922,2]
[408788444,1774271448080,-500.0,0.0002294,2]
[408788445,1774271448092,-199.51815212,0.00022955,5]
[408788446,1774271448103,-262.35452343,0.00022961,2]
[408788447,1774271448113,-370.61790261,0.00022975,120]
[408788448,1774271448122,-270.83333333,0.00023,2]
[408788449,1774271448132,-164.0,0.00023,2]
[408788450,1774271448142,-600.74,0.00023013,4]
[408788451,1774271448152,-500.0,0.00023013,4]
[408788452,1774271448162,-500.0,0.00023013,4]
[408788453,1774271448172,-310.8569524,0.00023013,4]
[408788454,1774271448183,-713.0,0.00023013,10]
[408788455,1774271448192,-164.1352729,0.00023071,120]
[408788456,1774271448202,-186.14825604,0.00023072,120]
[408788457,1774271448211,-261.72262419,0.00023072,120]
[408788458,1774271448220,-238.90505426,0.00023072,120]
[408788459,1774271448230,-454.899293,0.00023215,2]
[408788460,1774271448239,-344.6779892,0.00023222,2]
[408788461,1774271448248,-151.0,0.00023253,2]
[408788462,1774271448257,-2000.0,0.00023253,7]
[408788463,1774271448266,-2278.69420636,0.00023263,2]
[408788464,1774271448275,-221.22083122,0.00023274,120]
[408788465,1774271448284,-500.0,0.00023279,8]
[408788466,1774271448294,-600.74,0.00023287,4]
[408788467,1774271448303,-500.0,0.00023287,4]
[408788468,1774271448312,-500.0,0.00023287,4]
[408788469,1774271448322,-1537.10985053,0.00023291,40]
[408788470,1774271448331,-151.0,0.00023313,2]
[408788471,1774271448340,-1036.79,0.00023333,2]
[408788472,1774271448350,-82234.17946375,0.00023363,2]
[408788473,1774271448363,-521.19102886,0.00023363,2]
[408788474,1774271448405,-721.98446942,0.00023363,2]
[408788478,1774271738199,-500.0,0.00033261,120]
[408788479,1774271738223,-438.1357,0.00033261,120]
[408788480,1774271738247,-438.1357,0.00033261,120]
[408788481,1774271738271,-3000.0,0.00033261,120]
[408788482,1774271738295,-50000.0,0.00033261,30]
[408788483,1774271738319,-212998.68,0.00033261,120]
[408788484,1774271738343,-1000.0,0.00033261,120]
[408788485,1774271738368,-100000.18699461,0.00033261,30]
[408788486,1774271738394,-1000.23289936,0.00033261,120]
[408788487,1774271738418,-50051.59,0.00033261,120]
[408788488,1774271738442,-2000.0,0.00033261,120]
[408788489,1774271738466,-2000.0,0.00033261,120]
[408788490,1774271738488,-1023.7344932,0.00033261,120]
[408788491,1774271738509,-5000.0,0.00033261,120]
[408788492,1774271738532,-28918.0,0.00033261,30]
[408788493,1774271738553,-10039.12784416,0.00033261,120]
[408788494,1774271738576,-200000.0,0.00033261,30]
[408788495,1774271738598,-13861.62734964,0.00033261,120]
[408788496,1774271738620,-188.41052335,0.00033261,120]
[408788497,1774271738642,-50000.0,0.00033261,120]
[408788498,1774271738664,-60000.0,0.00033261,120]
[408788499,1774271738686,-70000.0,0.00033261,120]
[408788500,1774271738709,-80000.0,0.00033261,120]
[408788501,1774271738732,-50000.0,0.00033261,120]
[408788502,1774271738754,-54000.0,0.00033261,120]
[408788503,1774271738777,-181.54518927,0.00033261,120]
[408788504,1774271738799,-199.0,0.00033261,30]
[408788505,1774271738822,-237.84925954,0.00033261,30]
[408788506,1774271738844,-222.96566465,0.00033261,60]
[408788507,1774271738869,-151.01701917,0.00033261,30]
[408788508,1774271738892,-443.3742517,0.00033261,30]
[408788509,1774271738916,-568.38817554,0.00033261,30]
[408788510,1774271738940,-256.66303949,0.00033261,120]
[408788511,1774271738963,-224.6251836,0.00033261,120]
[408788512,1774271738987,-2968.47173072,0.00033261,30]
[408788513,1774271739010,-195.0,0.00033261,120]
[408788514,1774271739033,-213.90519663,0.00033261,120]
[408788515,1774271739057,-213.90519663,0.00033261,120]
[408788516,1774271739080,-213.90519663,0.00033261,120]
[408788517,1774271739103,-213.90519663,0.00033261,120]
[408788518,1774271739126,-213.90519663,0.00033261,120]
[408788519,1774271739150,-213.90519663,0.00033261,120]
[408788520,1774271739172,-213.90519663,0.00033261,120]
[408788521,1774271739194,-213.90519659,0.00033261,120]
[408788522,1774271739218,-174.97668628,0.00033261,120]
[408788523,1774271739241,-800.0,0.00033261,30]
[408788524,1774271739264,-700.0,0.00033261,30]
[408788525,1774271739287,-417.42573722,0.00033261,120]
[408788526,1774271739310,-417.42573722,0.00033261,120]
[408788527,1774271739334,-417.42573722,0.00033261,120]
[408788528,1774271739357,-417.42573722,0.00033261,120]
[408788529,1774271739380,-417.42573722,0.00033261,120]
[408788530,1774271739406,-417.42573722,0.00033261,120]
[408788531,1774271739428,-618.11574865,0.00033261,120]
[408788532,1774271739450,-270.8442721,0.00033261,120]
[408788533,1774271739472,-163.75255514,0.00033261,120]
[408788534,1774271739496,-163.75255514,0.00033261,120]
[408788535,1774271739520,-163.75255514,0.00033261,120]
[408788536,1774271739543,-163.75255514,0.00033261,120]
[408788537,1774271739567,-163.75255514,0.00033261,120]
[408788538,1774271739589,-163.75255514,0.00033261,120]
[408788539,1774271739613,-163.75255511,0.00033261,120]
[408788540,1774271739795,-3300.0,0.00033261,120]
[408788541,1774271739820,-150.73471903,0.00033261,120]
[408788542,1774271739842,-156.42307356,0.00033261,120]
[408788543,1774271739869,-300.0,0.00033261,120]
[408788544,1774271739894,-2329.10899553,0.00033261,120]
[408788545,1774271739919,-164.27360882,0.00033261,110]
[408788546,1774271739943,-159.42166396,0.00033261,120]
[408788547,1774271739966,-150.0116238,0.00033261,120]
[408788548,1774271739989,-1322.27606677,0.00033261,120]
[408788549,1774271740012,-2329.10899553,0.00033261,120]
[408788550,1774271740036,-159.42166396,0.00033261,120]
[408788551,1774271740062,-150.0116238,0.00033261,120]
[408788552,1774271740086,-1322.27606677,0.00033261,120]
[408788553,1774271740109,-2329.10899553,0.00033261,120]
[408788554,1774271740135,-159.42166396,0.00033261,120]
[408788555,1774271740158,-1322.27606677,0.00033261,120]
[408788556,1774271740184,-2329.10899553,0.00033261,120]
[408788557,1774271740206,-1322.27606677,0.00033261,120]
[408788558,1774271740230,-2329.10899553,0.00033261,120]
[408788559,1774271740254,-1322.27606677,0.00033261,120]
[408788560,1774271740278,-2329.10899553,0.00033261,120]
[408788561,1774271740302,-1322.27606677,0.00033261,120]
[408788562,1774271740325,-2329.10899553,0.00033261,120]
[408788563,1774271740349,-1322.27606677,0.00033261,120]
[408788564,1774271740374,-2329.10899553,0.00033261,120]
[408788565,1774271740408,-1322.27606677,0.00033261,120]
[408788566,1774271740441,-2329.10899553,0.00033261,120]
[408788567,1774271740466,-1322.27606677,0.00033261,120]
[408788568,1774271740492,-2329.10899553,0.00033261,120]
[408788569,1774271740518,-1322.27606677,0.00033261,120]
[408788570,1774271740544,-2329.10899553,0.00033261,120]
[408788571,1774271740569,-1322.27606677,0.00033261,120]
[408788572,1774271740594,-2329.10899553,0.00033261,120]
[408788573,1774271740618,-1322.27606677,0.00033261,120]
[408788574,1774271740642,-2329.10899553,0.00033261,120]
[408788575,1774271740667,-1322.27606677,0.00033261,120]
[408788576,1774271740692,-2329.10899553,0.00033261,120]
[408788577,1774271740716,-1322.27606677,0.00033261,120]
[408788578,1774271740743,-2329.10899553,0.00033261,120]
[408788579,1774271740769,-1322.27606677,0.00033261,120]
[408788580,1774271740794,-2329.10899553,0.00033261,120]
[408788581,1774271740817,-1322.27606677,0.00033261,120]
[408788582,1774271740847,-2329.10899553,0.00033261,120]
[408788583,1774271740873,-1322.27606677,0.00033261,120]
[408788584,1774271740899,-2329.10899553,0.00033261,120]
[408788585,1774271740923,-1322.27606677,0.00033261,120]
[408788586,1774271740948,-2329.10899553,0.00033261,120]
[408788587,1774271740975,-1322.27606677,0.00033261,120]
[408788588,1774271740999,-2329.10899553,0.00033261,120]
[408788589,1774271741029,-1322.27606677,0.00033261,120]
[408788590,1774271741054,-2329.10899553,0.00033261,120]
[408788591,1774271741079,-1322.27606677,0.00033261,120]
[408788592,1774271741105,-2329.10899553,0.00033261,120]
[408788593,1774271741128,-1322.27606677,0.00033261,120]
[408788594,1774271741155,-2329.10899553,0.00033261,120]
[408788595,1774271741180,-1322.27606677,0.00033261,120]
[408788596,1774271741206,-2329.10899553,0.00033261,120]
[408788597,1774271741231,-1322.27606677,0.00033261,120]
[408788598,1774271741255,-2329.10899553,0.00033261,120]
[408788599,1774271741279,-1322.27606677,0.00033261,120]
[408788600,1774271741305,-2329.10899553,0.00033261,120]
[408788601,1774271741329,-1322.27606677,0.00033261,120]
[408788602,1774271741354,-2329.10899553,0.00033261,120]
[408788603,1774271741378,-1322.27606677,0.00033261,120]
[408788604,1774271741404,-1322.27606677,0.00033261,120]
[408788605,1774271741429,-2329.10899553,0.00033261,120]
[408788606,1774271741453,-1322.27606677,0.00033261,120]
[408788607,1774271741478,-2329.10899553,0.00033261,120]
[408788608,1774271741502,-1322.27606677,0.00033261,120]
[408788609,1774271741528,-2329.10899553,0.00033261,120]
[408788610,1774271741553,-2329.10899553,0.00033261,120]
[408788611,1774271741577,-2329.10899553,0.00033261,120]
[408788612,1774271741602,-2329.10899553,0.00033261,120]
[408788613,1774271741629,-2329.10899553,0.00033261,120]
[408788614,1774271741653,-2329.10899553,0.00033261,120]
[408788615,1774271741677,-2329.10899553,0.00033261,120]
[408788616,1774271741704,-2329.10899553,0.00033261,120]
[408788617,1774271741731,-2329.10899553,0.00033261,120]
[408788618,1774271741758,-2329.10899553,0.00033261,120]
[408788619,1774271741785,-2329.10899553,0.00033261,120]
[408788620,1774271741811,-2329.10899553,0.00033261,120]
[408788621,1774271741837,-2329.10899553,0.00033261,120]
[408788622,1774271741865,-2329.10899553,0.00033261,120]
[408788623,1774271741893,-2329.10899553,0.00033261,120]
[408788624,1774271741919,-2329.10899553,0.00033261,120]
[408788625,1774271741943,-2329.10899553,0.00033261,120]
[408788626,1774271741968,-2329.10899553,0.00033261,120]
[408788627,1774271741993,-2329.10899553,0.00033261,120]
[408788628,1774271742017,-2329.10899553,0.00033261,120]
[408788629,1774271742043,-2329.10899553,0.00033261,120]
[408788630,1774271742067,-561.79134926,0.00033261,120]
[408788631,1774271742091,-561.79134926,0.00033261,120]
[408788632,1774271742114,-561.79134926,0.00033261,120]
[408788633,1774271742140,-561.79134926,0.00033261,120]
[408788634,1774271742165,-561.79134926,0.00033261,120]
[408788635,1774271742189,-561.79134926,0.00033261,120]
[408788636,1774271742213,-561.79134926,0.00033261,120]
[408788637,1774271742238,-561.79134926,0.00033261,120]
[408788638,1774271742262,-561.79134926,0.00033261,120]
[408788639,1774271742286,-561.79134926,0.00033261,120]
[408788640,1774271742310,-561.79134926,0.00033261,120]
[408788641,1774271742334,-561.79134926,0.00033261,120]
[408788642,1774271742359,-561.79134926,0.00033261,120]
[408788643,1774271742383,-561.79134926,0.00033261,120]
[408788644,1774271742410,-187.26378308,0.00033261,120]
[408788645,1774271742434,-187.26378308,0.00033261,120]
[408788646,1774271742459,-187.26378307,0.00033261,120]
[408788647,1774271742484,-197.17004681,0.00033261,120]
[408788648,1774271742510,-197.17004681,0.00033261,120]
[408788649,1774271742534,-197.17004681,0.00033261,120]
[408788650,1774271742558,-197.17004681,0.00033261,120]
[408788651,1774271742583,-197.17004681,0.00033261,120]
[408788652,1774271742607,-197.17004681,0.00033261,120]
[408788653,1774271742631,-197.17004681,0.00033261,120]
[408788654,1774271742656,-197.17004681,0.00033261,120]
[408788655,1774271742681,-216.50451247,0.00033261,120]
[408788656,1774271742877,-330.97683024,0.00033261,120]
[408788657,1774271742903,-251.16316698,0.00033261,120]
[408788658,1774271742928,-330.97683024,0.00033261,120]
[408788659,1774271742954,-216.50451247,0.00033261,120]
[408788660,1774271742978,-251.16316698,0.00033261,120]
[408788661,1774271743003,-330.97683024,0.00033261,120]
[408788662,1774271743030,-216.50451247,0.00033261,120]
[408788663,1774271743057,-251.16316698,0.00033261,120]
[408788664,1774271743083,-216.50451247,0.00033261,120]
[408788665,1774271743108,-251.16316698,0.00033261,120]
[408788666,1774271743133,-216.50451247,0.00033261,120]
[408788667,1774271743159,-216.50451247,0.00033261,120]
[408788668,1774271743184,-251.16316698,0.00033261,120]
[408788669,1774271743208,-216.50451247,0.00033261,120]
[408788670,1774271743233,-251.16316698,0.00033261,120]
[408788671,1774271743257,-216.50451247,0.00033261,120]
[408788672,1774271743282,-251.16316698,0.00033261,120]
[408788673,1774271743308,-251.16316698,0.00033261,120]
[408788674,1774271743332,-330.97683024,0.00033261,120]
[408788675,1774271743356,-330.97683024,0.00033261,120]
[408788676,1774271743381,-330.97683024,0.00033261,120]
[408788677,1774271743407,-330.97683024,0.00033261,120]
[408788678,1774271743431,-330.97683024,0.00033261,120]
[408788679,1774271743455,-330.97683024,0.00033261,120]
[408788680,1774271743479,-330.97683024,0.00033261,120]
[408788681,1774271743505,-330.97683024,0.00033261,120]
[408788682,1774271743529,-330.97683024,0.00033261,120]
[408788683,1774271743552,-330.97683024,0.00033261,120]
[408788684,1774271743576,-330.97683024,0.00033261,120]
[408788685,1774271743598,-330.97683024,0.00033261,120]
[408788686,1774271743622,-327.81745802,0.00033261,120]
[408788687,1774271743646,-327.81745802,0.00033261,120]
[408788688,1774271743671,-327.81745802,0.00033261,120]
[408788689,1774271743695,-327.81745802,0.00033261,120]
[408788690,1774271743720,-327.81745802,0.00033261,120]
[408788691,1774271743745,-327.81745802,0.00033261,120]
[408788692,1774271743771,-327.81745802,0.00033261,120]
[408788693,1774271743796,-327.81745802,0.00033261,120]
[408788694,1774271743821,-327.81745802,0.00033261,120]
[408788695,1774271743845,-327.81745802,0.00033261,120]
[408788696,1774271743871,-327.81745802,0.00033261,120]
[408788697,1774271743897,-327.81745802,0.00033261,120]
[408788698,1774271743921,-327.81745802,0.00033261,120]
[408788699,1774271743946,-327.81745802,0.00033261,120]
[408788700,1774271743969,-163.908729,0.00033261,120]
[408788701,1774271743993,-163.908729,0.00033261,120]
[408788702,1774271744017,-156.17937153,0.00033261,120]
[408788703,1774271744040,-219.29672175,0.00033261,120]
[408788704,1774271744064,-219.29672175,0.00033261,120]
[408788705,1774271744088,-219.29672175,0.00033261,120]
[408788706,1774271744110,-219.29672175,0.00033261,120]
[408788707,1774271744133,-219.29672175,0.00033261,120]
[408788708,1774271744156,-219.29672175,0.00033261,120]
[408788709,1774271744180,-219.29672175,0.00033261,120]
[408788710,1774271744203,-219.29672175,0.00033261,120]
[408788711,1774271744226,-219.29672175,0.00033261,120]
[408788712,1774271744251,-219.29672175,0.00033261,120]
[408788713,1774271744274,-219.29672175,0.00033261,120]
[408788714,1774271744297,-219.29672175,0.00033261,120]
[408788715,1774271744319,-219.29672175,0.00033261,120]
[408788716,1774271744343,-219.29672175,0.00033261,120]
[408788717,1774271744367,-219.29672172,0.00033261,120]
[408788718,1774271744392,-1115.0800335,0.00033261,31]
[408788719,1774271744416,-174.95420337,0.00033261,120]
[408788720,1774271744439,-152.08292409,0.00033261,120]
[408788721,1774271744462,-174.95420337,0.00033261,120]
[408788722,1774271744484,-8006.33,0.00033261,120]
[408788723,1774271744507,-8006.34,0.00033261,120]
[408788724,1774271744531,-284.224551,0.00033261,40]
[408788725,1774271744553,-284.224551,0.00033261,40]
[408788726,1774271744593,-10000.0,0.00033261,60]
[408788727,1774271744869,1920.93259303,0.00033261,30]
[408788728,1774271744901,16443.03996303,0.00033261,30]
[408788729,1774271766870,-185.30895127,0.00023973,120]
[408788730,1774271766899,-7870.8131916,0.00024541,59]
[408788731,1774271766929,-5000.0,0.00025,120]
[408788732,1774271766956,-932.42,0.00025,30]
[408788733,1774271766990,-258.69,0.00026369,30]
[408788734,1774271767019,-4000.0,0.000273,120]
[408788735,1774271767045,-10000.0,0.000273,120]
[408788736,1774271767070,-10000.0,0.000273,120]
[408788737,1774271767095,-10000.0,0.000273,120]
[408788738,1774271767121,-10000.0,0.000273,120]
[408788739,1774271767149,-10000.0,0.0002735,120]
[408788740,1774271767174,-10000.0,0.0002735,120]
[408788741,1774271767199,-4893.0,0.0002735,120]
[408788742,1774271767224,-599.40527387,0.00027397,120]
[408788743,1774271767255,-1678.35732542,0.00027483,79]
[408788744,1774271767280,-150.0,0.00027608,30]
[408788745,1774271767306,-9069.87437816,0.00027783,80]
[408788746,1774271767331,-164.9240238,0.00028,120]
[408788747,1774271767364,-1000.0,0.00028101,30]
[408788748,1774271767391,-200.0,0.00028182,120]
[408788749,1774271767417,-475.0,0.000286,120]
[408788750,1774271767441,-150.0,0.00028608,30]
[408788751,1774271767464,-5882.90269306,0.0002876,30]
[408788752,1774271767487,-735.86722566,0.000288,30]
[408788753,1774271767511,-1119571.80139259,0.000289,45]
[408788754,1774271767538,-282.69313,0.00029,120]
[408788755,1774271767561,-2441.36784238,0.00029,60]
[408788756,1774271767583,-5000.0,0.00029,30]
[408788757,1774271767605,-22565.19609606,0.00029,30]
[408788758,1774271767629,-200.0,0.00029232,120]
[408788759,1774271767653,-299.0,0.00029233,30]
[408788760,1774271767676,-299.0,0.00029233,30]
[408788761,1774271767959,-299.0,0.00029233,30]
[408788762,1774271767985,-200.0,0.00029275,120]
[408788763,1774271768014,-200.0,0.00029438,120]
[408788764,1774271768039,-475.0,0.00029581,120]
[408788765,1774271768064,-475.0,0.00029581,120]
[408788766,1774271768090,-475.0,0.00029581,120]
[408788767,1774271768112,-150.0,0.00029608,30]
[408788768,1774271768138,-200.0,0.00029673,120]
[408788769,1774271768165,-1900.0,0.0002977,120]
[408788770,1774271768190,-200.0,0.00029815,120]
[408788771,1774271768214,-163.60274288,0.00029896,60]
[408788772,1774271768239,-10000.0,0.000299,120]
[408788773,1774271768263,-1000.0,0.0003,30]
[408788774,1774271768286,-8235.94,0.0003,60]
[408788775,1774271768309,-700.0,0.0003,120]
[408788776,1774271768331,-2704.43718364,0.0003,120]
[408788777,1774271768353,-11436.74252882,0.0003,120]
[408788778,1774271768375,-7228.00818662,0.0003,60]
[408788779,1774271768397,-14674.941906,0.0003,90]
[408788780,1774271768422,-466.98305888,0.0003,120]
[408788781,1774271768445,-200.0,0.0003,120]
[408788782,1774271768467,-1572.0,0.0003,120]
[408788783,1774271768490,-1000.0,0.0003,120]
[408788784,1774271768512,-20845.3336632,0.0003,120]
[408788785,1774271768535,-1011.25,0.0003,30]
[408788786,1774271768559,-650.0,0.0003,30]
[408788787,1774271768582,-3000.0,0.0003,120]
[408788788,1774271768604,-674.52467531,0.0003,120]
[408788789,1774271768627,-5111.0416898,0.0003,120]
[408788790,1774271768653,-30500.0,0.0003,30]
[408788791,1774271768682,-10000.0,0.0003,120]
[408788792,1774271768707,-10000.0,0.0003,120]
[408788793,1774271768733,-10000.0,0.0003,120]
[408788794,1774271768758,-10000.0,0.0003,120]
[408788795,1774271768782,-10000.0,0.0003,120]
[408788796,1774271768806,-10000.0,0.0003,60]
[408788797,1774271768830,-10000.0,0.0003,60]
[408788798,1774271768854,-3512.0,0.0003,30]
[408788799,1774271768883,-16926.54211691,0.0003,60]
[408788800,1774271768909,-30000.0,0.0003,60]
[408788801,1774271768935,-200.0,0.00030022,120]
[408788802,1774271768961,-15080.04567488,0.0003013,120]
[408788803,1774271768985,-1422.38375374,0.0003013,120]
[408788804,1774271769008,-9213.92078451,0.0003013,120]
[408788805,1774271769032,-1000.0,0.00030137,120]
[408788806,1774271769055,-60894.2150158,0.00030137,120]
[408788807,1774271769078,-602.73194602,0.000302,120]
[408788808,1774271769101,-221.76033119,0.000302,120]
[408788809,1774271769126,-1109.22243992,0.000302,120]
[408788810,1774271769150,-174.57264775,0.000302,120]
[408788811,1774271769175,-1019.30904231,0.000302,120]
[408788812,1774271769197,-1474.95933973,0.000302,120]
[408788813,1774271769221,-2669.69267966,0.000302,120]
[408788814,1774271769245,-1287.54440048,0.000302,120]
[408788815,1774271769268,-167.6707706,0.000302,120]
[408788816,1774271769291,-172.05330404,0.000302,120]
[408788817,1774271769314,-483.40654493,0.000302,120]
[408788818,1774271769336,-565.85123698,0.000302,120]
[408788819,1774271769360,-2102.23789948,0.000302,120]
[408788820,1774271769384,-367.89813676,0.000302,120]
[408788821,1774271769409,-905.99933233,0.000303,120]
[408788822,1774271769435,-1011.25,0.00030462,30]
[408788823,1774271769460,-200.0,0.00030493,120]
[408788824,1774271769485,-224.74306061,0.00030524,30]
[408788825,1774271769509,-150.0,0.00030608,30]
[408788826,1774271769534,-200.0,0.00030754,120]
[408788827,1774271769560,-200.0,0.0003081,120]
[408788828,1774271769584,-150.96980603,0.00030896,60]
[408788829,1774271769607,-72223.0,0.000309,120]
[408788830,1774271769630,-1500.0,0.000309,120]
[408788831,1774271769659,-1000.0,0.00030912,30]
[408788832,1774271769685,-244.0,0.00030912,30]
[408788833,1774271769709,-1011.25,0.00030923,30]
[408788834,1774271769736,-1000.0,0.00031,120]
[408788835,1774271769759,-350.0,0.00031,60]
[408788836,1774271769783,-1000.0,0.00031,120]
[408788837,1774271769807,-251.75352525,0.00031,120]
[408788838,1774271769831,-159.0,0.00031,120]
[408788839,1774271769854,-2042.0,0.00031,120]
[408788840,1774271769881,-7798.35064817,0.00031,120]
[408788841,1774271769909,-9417.22008015,0.00031024,87]
[408788842,1774271769934,-602.73194602,0.000311,120]
[408788843,1774271769958,-221.76033119,0.000311,120]
[408788844,1774271769981,-1109.22243992,0.000311,120]
[408788845,1774271770006,-174.57264775,0.000311,120]
[408788846,1774271770032,-1019.30904231,0.000311,120]
[408788847,1774271770056,-1474.95933973,0.000311,120]
[408788848,1774271770081,-2669.69267966,0.000311,120]
[408788849,1774271770103,-167.6707706,0.000311,120]
[408788850,1774271770126,-1287.54440048,0.000311,120]
[408788851,1774271770149,-483.40654493,0.000311,120]
[408788852,1774271770174,-172.05330404,0.000311,120]
[408788853,1774271770200,-565.85123698,0.000311,120]
[408788854,1774271770225,-2102.23789948,0.000311,120]
[408788855,1774271770249,-367.89813676,0.000311,120]
[408788856,1774271770273,-905.99933233,0.000312,120]
[408788857,1774271770296,-160.0,0.00031233,120]
[408788858,1774271770320,-160.0,0.00031233,30]
[408788859,1774271770343,-160.0,0.00031233,30]
[408788860,1774271770367,-160.0,0.00031233,30]
[408788861,1774271770390,-2326.0,0.000313,120]
[408788862,1774271770415,-1011.25,0.00031385,30]
[408788863,1774271770441,-400.0,0.000314,120]
[408788864,1774271770465,-255.4,0.000314,30]
[408788865,1774271770489,-461.01,0.000314,90]
[408788866,1774271770513,-400.0,0.00031485,30]
[408788867,1774271770536,-160.0,0.00031507,120]
[408788868,1774271770559,-1628.71339423,0.0003158,30]
[408788869,1774271770595,-1179.56,0.000316,120]
[408788870,1774271770620,-192.96,0.000316,30]
[408788871,1774271770645,-150.0,0.00031608,30]
[408788872,1774271770672,-2144.58493858,0.00031674,88]
[408788873,1774271770863,-160.0,0.00031781,120]
[408788874,1774271770890,-160.0,0.00031781,30]
[408788875,1774271770914,-1011.25,0.00031846,30]
[408788876,1774271770938,-150.96980603,0.00031896,60]
[408788877,1774271770963,-1500.0,0.000319,120]
[408788878,1774271770987,-1000.0,0.00032,30]
[408788879,1774271771010,-1000.0,0.00032,120]
[408788880,1774271771033,-156.82840571,0.00032,30]
[408788881,1774271771056,-1014.84280844,0.00032,120]
[408788882,1774271771080,-602.73194602,0.00032,120]
[408788883,1774271771108,-221.76033119,0.00032,120]
[408788884,1774271771132,-1109.22243992,0.00032,120]
[408788885,1774271771157,-174.57264775,0.00032,120]
[408788886,1774271771182,-1019.30904231,0.00032,120]
[408788887,1774271771207,-1474.95933973,0.00032,120]
[408788888,1774271771231,-2669.69267966,0.00032,120]
[408788889,1774271771254,-167.6707706,0.00032,120]
[408788890,1774271771279,-1287.54440048,0.00032,120]
[408788891,1774271771302,-483.40654493,0.00032,120]
[408788892,1774271771326,-565.85123698,0.00032,120]
[408788893,1774271771351,-367.89813676,0.00032,120]
[408788894,1774271771375,-2102.23789948,0.00032,120]
[408788895,1774271771400,-10000.0,0.00032,120]
[408788896,1774271771427,-10000.0,0.00032,120]
[408788897,1774271771454,-10000.0,0.00032,120]
[408788898,1774271771479,-10000.0,0.00032,120]
[408788899,1774271771505,-160.0,0.00032055,120]
[408788900,1774271771529,-5000.0,0.000321,34]
[408788901,1774271771554,-5000.0,0.000321,34]
[408788902,1774271771579,-905.99933233,0.000321,120]
[408788903,1774271771603,-331590.68218447,0.0003211,120]
[408788904,1774271771629,-1803.043,0.000322,30]
[408788905,1774271771654,-1803.043,0.000322,30]
[408788906,1774271771680,-1803.04,0.000322,30]
[408788907,1774271771705,-326.47,0.000322,30]
[408788908,1774271771732,-1214.965,0.000322,30]
[408788909,1774271771757,-1214.96,0.000322,30]
[408788910,1774271771782,-1211.035,0.000322,30]
[408788911,1774271771806,-1211.03,0.000322,30]
[408788912,1774271771832,-200.0,0.00032216,120]
[408788913,1774271771857,-1011.25,0.00032308,120]
[408788914,1774271771883,-160.0,0.00032329,120]
[408788915,1774271771907,-160.0,0.00032329,120]
[408788916,1774271771933,-160.0,0.00032329,30]
[408788917,1774271771960,-2000.0,0.000326,120]
[408788918,1774271771984,-160.0,0.00032603,120]
[408788919,1774271772007,-160.0,0.00032603,120]
[408788920,1774271772032,-150.0,0.00032608,30]
[408788921,1774271772056,-30416.40885507,0.00032759,120]
[408788922,1774271772080,-1011.25,0.00032769,120]
[408788923,1774271772106,-1000.0,0.00032876,120]
[408788924,1774271772134,-1000.0,0.00032876,120]
[408788925,1774271772160,-1000.0,0.00032876,120]
[408788926,1774271772187,-1000.0,0.00032876,120]
[408788927,1774271772211,-1000.0,0.00032876,120]
[408788928,1774271772235,-1000.0,0.00032876,120]
[408788929,1774271772260,-1000.0,0.00032876,120]
[408788930,1774271772285,-1000.0,0.00032876,120]
[408788931,1774271772309,-1000.0,0.00032876,120]
[408788932,1774271772333,-1000.0,0.00032876,120]
[408788933,1774271772358,-1000.0,0.00032876,120]
[408788934,1774271772382,-1000.0,0.00032876,120]
[408788935,1774271772407,-1000.0,0.00032876,120]
[408788936,1774271772433,-1000.0,0.00032876,120]
[408788937,1774271772458,-1000.0,0.00032876,120]
[408788938,1774271772486,-1000.0,0.00032876,120]
[408788939,1774271772511,-1000.0,0.00032876,120]
[408788940,1774271772537,-251.10108839,0.00032876,120]
[408788941,1774271772563,-990.0,0.00032876,120]
[408788942,1774271772588,-1000.0,0.00032877,120]
[408788943,1774271772613,-113000.0,0.00032877,120]